bitfinex-derivatives/quotes_BTCF0:USTF0_20251204
["timestamp","ask_amount","ask_price","bid_price","bid_amount"]
[1764864504978,0.012,92826.0,92825.0,0.1064]
[1764864505477,0.00016162,92835.0,92834.0,0.1054]
[1764864505681,0.10477162,92835.0,92834.0,0.00242002]
[1764864505973,0.05316162,92835.0,92834.0,0.10782002]
[1764864506177,0.00016162,92835.0,92834.0,0.10782002]
[1764864506479,0.00016162,92835.0,92834.0,0.11858992]
[1764864507177,0.00416162,92835.0,92834.0,0.11958992]
[1764864507374,0.00026926,92846.0,92845.0,0.1054]
[1764864507769,0.05326926,92846.0,92845.0,0.1054]
[1764864508276,0.00026926,92846.0,92845.0,0.1054]
[1764864508877,0.0107686,92845.0,92836.0,0.01093122]
[1764864509179,0.053,92845.0,92844.0,0.00242002]
[1764864509377,0.053,92845.0,92836.0,0.00016162]
[1764864509563,0.053,92845.0,92836.0,0.00258164]
[1764864509769,0.10461,92837.0,92836.0,0.00016162]
[1764864510272,0.0637729,92808.0,92807.0,0.1054]
[1764864510476,0.0637725,92812.0,92811.0,0.05443]
[1764864510868,0.2738559,92820.0,92807.0,0.1054]
[1764864511075,0.0107729,92808.0,92807.0,0.1054]
[1764864511269,0.3034559,92820.0,92807.0,0.1054]
[1764864511469,0.001,92808.0,92807.0,0.1154]
[1764864511877,0.001,92808.0,92807.0,0.145]
[1764864512674,0.10561,92808.0,92807.0,0.1154]
[1764864512978,0.10561,92808.0,92807.0,0.01]
[1764864513180,0.001,92808.0,92807.0,0.1154]
[1764864513386,0.001,92820.0,92812.0,0.1054]
[1764864513681,0.1163815,92820.0,92819.0,0.00242002]
[1764864513878,0.0107724,92813.0,92807.0,0.0436]
[1764864514082,0.04924,92808.0,92807.0,0.003]
[1764864514376,0.10007,92808.0,92807.0,0.014]
[1764864515774,0.09907,92808.0,92807.0,0.003]
[1764864516172,0.09907,92805.0,92804.0,0.00016162]
[1764864516976,0.0397831,92807.0,92778.0,0.0107763]
[1764864517289,0.04924,92785.0,92784.0,0.05073]
[1764864517783,0.0107753,92788.0,92755.0,0.02751]
[1764864517982,0.010776,92782.0,92768.0,0.0382875]
[1764864518183,0.00016162,92781.0,92780.0,0.05073]
[1764864518379,0.00016162,92781.0,92773.0,0.10069]
[1764864518788,0.0107765,92778.0,92773.0,0.10069]
[1764864518982,0.0107768,92776.0,92775.0,0.05073]
[1764864519185,0.0107763,92779.0,92768.0,0.02751]
[1764864519379,0.0107763,92779.0,92775.0,0.00242002]
[1764864519582,0.0107769,92775.0,92773.0,0.014]
[1764864519785,0.1098469,92775.0,92774.0,0.05073]
[1764864521383,0.1098469,92775.0,92768.0,0.015]
[1764864521884,0.1108469,92775.0,92774.0,0.013]
[1764864522278,0.1108469,92775.0,92762.0,0.00016162]
[1764864522486,0.09547,92763.0,92762.0,0.00016162]
[1764864522887,0.09547,92763.0,92762.0,0.00258164]
[1764864523076,0.09547,92763.0,92762.0,0.00016162]
[1764864523279,0.09547,92763.0,92762.0,0.00258164]
[1764864523691,0.09647,92763.0,92762.0,0.01858164]
[1764864523887,0.09647,92763.0,92762.0,0.01916162]
[1764864525691,0.09647,92763.0,92762.0,0.11435162]
[1764864525892,0.09647,92763.0,92762.0,0.01916162]
[1764864526290,0.09547,92763.0,92762.0,0.00016162]
[1764864526485,0.09547,92763.0,92762.0,0.00416162]
[1764864527987,0.09547,92763.0,92762.0,0.05149162]
[1764864528191,0.09547,92763.0,92762.0,0.00416162]
[1764864529982,0.09547,92763.0,92762.0,0.09935162]
[1764864530187,0.04724,92763.0,92762.0,0.09935162]
[1764864530796,0.10640772,92781.0,92780.0,0.04786]
[1764864530982,0.10640772,92781.0,92763.0,0.02657]
[1764864530983,0.0107773,92771.0,92770.0,0.09519]
[1764864531189,0.04724,92771.0,92770.0,0.09519]
[1764864531684,0.0580166,92777.0,92776.0,0.09519]
[1764864532281,0.1062466,92777.0,92776.0,0.09519]
[1764864532796,0.09547,92777.0,92776.0,0.09519]
[1764864532992,0.04724,92777.0,92776.0,0.09519]
[1764864533192,0.04724,92777.0,92776.0,0.09719]
[1764864533595,0.41924,92780.0,92779.0,0.09519]
[1764864533802,0.41924,92780.0,92779.0,0.09761002]
[1764864533987,0.46648,92780.0,92779.0,0.09761002]
[1764864534188,0.51471,92780.0,92779.0,0.09761002]
[1764864534389,0.51471,92780.0,92779.0,0.09519]
[1764864535397,0.51471,92780.0,92779.0,0.09719]
[1764864536988,0.51571,92780.0,92779.0,0.09719]
[1764864538098,0.51571,92780.0,92779.0,0.04933]
[1764864538686,0.54255,92780.0,92779.0,0.002]
[1764864539090,0.12231,92763.0,92762.0,0.00016162]
[1764864539493,0.12231,92763.0,92762.0,0.00258164]
[1764864539494,0.09547,92763.0,92762.0,0.00258164]
[1764864540196,0.1062474,92770.0,92769.0,0.04733]
[1764864540399,0.09547,92770.0,92769.0,0.09519]
[1764864540593,0.05782007,92779.0,92777.0,0.09519]
[1764864540594,0.1062465,92778.0,92777.0,0.09519]
[1764864540997,0.00016162,92781.0,92780.0,0.09519]
[1764864541202,0.00016162,92781.0,92780.0,0.09761002]
[1764864541800,0.09563162,92781.0,92780.0,0.09761002]
[1764864542203,0.09563162,92781.0,92780.0,0.09861002]
[1764864542509,0.00016162,92781.0,92780.0,0.09861002]
[1764864543207,0.50508,92798.0,92797.0,0.09519]
[1764864543703,0.50508,92798.0,92797.0,0.1082973]
[1764864544108,0.00026938,92806.0,92805.0,0.08917]
[1764864544400,0.0107734,92805.0,92804.0,0.04718]
[1764864544603,0.00026938,92806.0,92805.0,0.08902]
[1764864544807,0.00026938,92806.0,92805.0,0.09144002]
[1764864545307,0.00026938,92806.0,92805.0,0.08902]
[1764864545807,0.00016162,92807.0,92806.0,0.0997932]
[1764864546006,0.00016162,92807.0,92806.0,0.10221322]
[1764864547804,0.0107713,92822.0,92821.0,0.08902]
[1764864548204,0.1045813,92822.0,92821.0,0.08902]
[1764864549904,0.1045813,92822.0,92821.0,0.04818]
[1764864550105,0.1045813,92822.0,92821.0,0.001]
[1764864550407,0.1055813,92822.0,92821.0,0.001]
[1764864551006,0.16342223,92822.0,92821.0,0.001]
[1764864551210,0.1055813,92822.0,92821.0,0.001]
[1764864551404,0.1065813,92822.0,92812.0,0.00016162]
[1764864551603,0.1085813,92822.0,92812.0,0.00258164]
[1764864552202,0.004,92822.0,92821.0,0.09144002]
[1764864552812,0.09781,92822.0,92812.0,0.00016162]
[1764864553012,0.09381,92813.0,92812.0,0.04976164]
[1764864553207,0.09381,92813.0,92812.0,0.00016162]
[1764864553512,0.09381,92813.0,92812.0,0.00258164]
[1764864553709,0.09381,92813.0,92812.0,0.00016162]
[1764864553902,0.09381,92813.0,92812.0,0.00358164]
[1764864554097,0.09381,92813.0,92812.0,0.05076164]
[1764864554311,0.0591918,92818.0,92817.0,0.08902]
[1764864554911,0.09381,92813.0,92812.0,0.00116162]
[1764864555104,0.59873,92813.0,92812.0,0.00216162]
[1764864555299,0.0107749,92792.0,92781.0,0.010776]
[1764864555500,0.09381,92785.0,92784.0,0.04718]
[1764864555713,0.09381,92785.0,92784.0,0.08902]
[1764864555905,0.0107744,92796.0,92785.0,0.0107756]
[1764864556104,0.2738559,92800.0,92791.0,0.0107748]
[1764864556322,0.09381,92800.0,92799.0,0.00242002]
[1764864556509,0.00016162,92805.0,92804.0,0.08902]
[1764864556813,0.00016162,92805.0,92804.0,0.09144002]
[1764864557805,0.00016162,92805.0,92804.0,0.09344002]
[1764864558509,0.00116162,92805.0,92804.0,0.09344002]
[1764864558709,0.04958162,92805.0,92804.0,0.09344002]
[1764864558912,0.00116162,92805.0,92804.0,0.09344002]
[1764864559917,0.00216162,92805.0,92804.0,0.10044002]
[1764864560114,0.09597162,92805.0,92804.0,0.10044002]
[1764864560518,0.09597162,92805.0,92804.0,0.09602]
[1764864560715,0.09597162,92805.0,92804.0,0.007]
[1764864561216,0.09597162,92805.0,92804.0,0.008]
[1764864561610,0.00116162,92805.0,92787.0,0.0107753]
[1764864561811,0.0107742,92798.0,92789.0,0.0107751]
[1764864562010,0.1045842,92798.0,92797.0,0.00242002]
[1764864563018,0.00016162,92805.0,92804.0,0.08902]
[1764864563319,0.00316162,92805.0,92804.0,0.09144002]
[1764864563522,0.23272,92829.0,92824.0,0.0997911]
[1764864563523,0.05784093,92825.0,92824.0,0.0997911]
[1764864563715,0.23272,92829.0,92828.0,0.04718]
[1764864564018,0.23272,92829.0,92828.0,0.04960002]
[1764864564216,0.2434905,92829.0,92828.0,0.04960002]
[1764864564417,0.0591921,92816.0,92815.0,0.08902]
[1764864564623,0.1045821,92816.0,92815.0,0.08902]
[1764864565021,0.04842,92816.0,92815.0,0.08902]
[1764864565425,0.09397162,92825.0,92824.0,0.08902]
[1764864565918,0.04858162,92825.0,92824.0,0.08902]
[1764864566120,0.00016162,92825.0,92824.0,0.08902]
[1764864567720,0.00016162,92825.0,92824.0,0.09002]
[1764864568521,0.05817714,92846.0,92845.0,0.04718]
[1764864568822,0.00026926,92846.0,92845.0,0.08902]
[1764864570230,0.00026926,92846.0,92845.0,0.1017886]
[1764864570825,0.00026926,92846.0,92845.0,0.1027886]
[1764864571428,0.09407926,92846.0,92845.0,0.05018]
[1764864572229,0.09407926,92846.0,92845.0,0.09202]
[1764864572420,0.04868926,92846.0,92845.0,0.09202]
[1764864572621,0.09407926,92846.0,92845.0,0.05018]
[1764864572823,0.12047926,92846.0,92845.0,0.003]
[1764864573023,0.12147926,92846.0,92845.0,0.003]
[1764864573925,0.0107687,92845.0,92836.0,0.00016162]
[1764864574117,0.0107687,92845.0,92836.0,0.00258164]
[1764864574623,0.04679926,92846.0,92845.0,0.08171]
[1764864574827,0.04579926,92846.0,92845.0,0.08413002]
[1764864575024,0.04679926,92846.0,92845.0,0.08413002]
[1764864575528,0.09824776,92846.0,92845.0,0.08413002]
[1764864576829,0.09824776,92846.0,92845.0,0.08613002]
[1764864577429,0.09824776,92846.0,92845.0,0.00442002]
[1764864577623,0.09824776,92846.0,92845.0,0.002]
[1764864577935,0.09724776,92846.0,92845.0,0.002]
[1764864578125,0.09824776,92846.0,92845.0,0.002]
[1764864579923,0.08621,92837.0,92836.0,0.00016162]
[1764864580822,0.08621,92837.0,92836.0,0.00258164]
[1764864581022,0.08621,92837.0,92836.0,0.00458164]
[1764864581219,0.08721,92837.0,92836.0,0.00458164]
[1764864581522,0.08721,92837.0,92836.0,0.00016162]
[1764864583332,0.08621,92837.0,92836.0,0.00116162]
[1764864583534,0.08721,92837.0,92836.0,0.00116162]
[1764864584031,0.02284,92832.0,92804.0,0.0107734]
[1764864584328,0.07903,92808.0,92807.0,0.01271305]
[1764864584638,0.07903,92808.0,92807.0,0.04927305]
[1764864584824,0.07903,92808.0,92807.0,0.03656]
[1764864585225,0.07903,92799.0,92798.0,0.03672162]
[1764864585427,0.07903,92799.0,92798.0,0.03914164]
[1764864585629,0.04037,92808.0,92807.0,0.07674]
[1764864585934,0.07919162,92817.0,92816.0,0.07674]
[1764864586135,0.00016162,92817.0,92808.0,0.02817]
[1764864586434,0.04037,92809.0,92808.0,0.04156]
[1764864586634,0.04037,92809.0,92808.0,0.07674]
[1764864586834,0.0898029,92808.0,92807.0,0.001]
[1764864587236,0.089804,92799.0,92798.0,0.00016162]
[1764864587726,0.089804,92799.0,92798.0,0.00258164]
[1764864587927,0.07903,92799.0,92798.0,0.03914164]
[1764864588837,0.07903,92799.0,92798.0,0.07932164]
[1764864589135,0.07903,92799.0,92798.0,0.00016162]
[1764864589532,0.07903,92799.0,92798.0,0.00258164]
[1764864589735,0.07903,92799.0,92798.0,0.00016162]
[1764864589940,0.04037,92807.0,92806.0,0.07674]
[1764864590330,0.001,92808.0,92807.0,0.09991]
[1764864590525,0.05790788,92811.0,92810.0,0.07674]
[1764864590733,0.0107723,92814.0,92813.0,0.07674]
[1764864591039,0.01093352,92817.0,92816.0,0.07674]
[1764864591236,0.01093352,92817.0,92816.0,0.07916002]
[1764864591533,0.05130352,92817.0,92816.0,0.07916002]
[1764864592436,0.09096352,92817.0,92816.0,0.07916002]
[1764864593539,0.09096352,92817.0,92816.0,0.001]
[1764864593738,0.09096352,92817.0,92816.0,0.03998002]
[1764864594141,0.09096352,92817.0,92816.0,0.001]
[1764864594339,0.09096352,92817.0,92816.0,0.00342002]
[1764864594535,0.09096352,92817.0,92816.0,0.08016002]
[1764864594745,0.00116162,92817.0,92816.0,0.08016002]
[1764864598537,0.00116162,92817.0,92816.0,0.08016002]
[1764864599539,0.05790788,92833.0,92832.0,0.07674]
[1764864599742,0.43564,92835.0,92834.0,0.07674]
[1764864599939,0.43564,92835.0,92834.0,0.07916002]
[1764864600141,0.5254398,92835.0,92834.0,0.07916002]
[1764864600340,0.43564,92835.0,92834.0,0.07916002]
[1764864600541,0.51467,92835.0,92834.0,0.07916002]
[1764864601044,0.00016121,92844.0,92843.0,0.0875089]
[1764864601348,0.0107656,92872.0,92843.0,0.0875089]
[1764864601349,0.06867528,92856.0,92855.0,0.07674]
[1764864601541,0.04037,92847.0,92846.0,0.07674]
[1764864601743,0.0511384,92847.0,92846.0,0.07674]
[1764864601943,0.0897984,92847.0,92846.0,0.07674]
[1764864602142,0.07903,92847.0,92846.0,0.07674]
[1764864603144,0.0897984,92847.0,92846.0,0.07874]
[1764864603334,0.07903,92847.0,92846.0,0.07874]
[1764864603744,0.07903,92847.0,92846.0,0.07674]
[1764864603939,0.07903,92847.0,92846.0,0.08074]
[1764864604246,0.0832695,92838.0,92837.0,0.00016153]
[1764864605745,0.13496217,92871.0,92853.0,0.0863677]
[1764864605946,0.0725,92878.0,92865.0,0.0107663]
[1764864606151,0.0832648,92878.0,92869.0,0.0107658]
[1764864606355,0.0725,92878.0,92877.0,0.00242002]
[1764864606646,0.0832649,92878.0,92868.0,0.01092743]
[1764864606845,0.009,92871.0,92870.0,0.0756]
[1764864607438,0.0107659,92869.0,92868.0,0.07576153]
[1764864607642,0.0832659,92869.0,92868.0,0.00016153]
[1764864609251,0.0852659,92869.0,92868.0,0.00016153]
[1764864609644,0.0902659,92869.0,92868.0,0.00116153]
[1764864610050,0.007,92869.0,92840.0,0.02177]
[1764864610349,0.007,92869.0,92839.0,0.0879798]
[1764864610350,0.0107688,92844.0,92839.0,0.0879798]
[1764864610654,0.0107688,92844.0,92843.0,0.07802002]
[1764864610849,0.0488988,92844.0,92843.0,0.07802002]
[1764864611055,0.03813,92844.0,92843.0,0.07802002]
[1764864611349,0.0107685,92847.0,92846.0,0.03945]
[1764864611350,0.0488985,92847.0,92846.0,0.03945]
[1764864611555,0.217605,92850.0,92834.0,0.00016153]
[1764864611752,0.0107686,92846.0,92835.0,0.0107697]
[1764864611952,0.03813,92841.0,92840.0,0.0863692]
[1764864612355,0.0107679,92852.0,92844.0,0.0107687]
[1764864612557,0.0107679,92852.0,92851.0,0.00242002]
[1764864612856,0.03829153,92853.0,92852.0,0.03945]
[1764864613056,0.03829153,92853.0,92852.0,0.07802002]
[1764864615359,0.04129153,92853.0,92852.0,0.07802002]
[1764864615857,0.07266153,92853.0,92852.0,0.07802002]
[1764864616053,0.00216153,92853.0,92852.0,0.07802002]
[1764864616249,0.00316153,92853.0,92852.0,0.07802002]
[1764864617254,0.0725,92840.0,92839.0,0.0756]
[1764864618149,0.0832692,92840.0,92839.0,0.0756]
[1764864618558,0.0832692,92840.0,92839.0,0.0863693]
[1764864618559,0.0725,92840.0,92839.0,0.0863693]
[1764864618759,0.0735,92840.0,92839.0,0.0816]
[1764864618951,0.0735,92840.0,92839.0,0.006]
[1764864619153,0.0735,92840.0,92839.0,0.008]
[1764864619959,0.0745,92840.0,92839.0,0.002]
[1764864620159,0.0832698,92835.0,92834.0,0.00016153]
[1764864620963,0.0832698,92835.0,92834.0,0.00258155]
[1764864621263,0.0832698,92835.0,92834.0,0.00016153]
[1764864621763,0.0832698,92835.0,92834.0,0.00258155]
[1764864622061,0.0902698,92835.0,92834.0,0.00116153]
[1764864622766,0.0882698,92835.0,92834.0,0.00116153]
[1764864623264,0.0872698,92835.0,92834.0,0.00016153]
[1764864624259,0.0832718,92818.0,92817.0,0.0001319]
[1764864624457,0.0832718,92818.0,92817.0,0.00255192]
[1764864624856,0.0832718,92818.0,92817.0,0.0001319]
[1764864625057,0.0107718,92818.0,92817.0,0.07815192]
[1764864625255,0.0489018,92818.0,92817.0,0.07815192]
[1764864625460,0.0832718,92818.0,92817.0,0.07815192]
[1764864625660,0.0842718,92818.0,92817.0,0.07815192]
[1764864627753,0.0842718,92818.0,92817.0,0.0001319]
[1764864628062,0.0842718,92818.0,92817.0,0.00255192]
[1764864628966,0.0842718,92818.0,92817.0,0.0001319]
[1764864629158,0.0842718,92818.0,92817.0,0.00255192]
[1764864629561,0.0735,92818.0,92817.0,0.04200192]
[1764864629757,0.001,92818.0,92817.0,0.07815192]
[1764864632168,0.0107711,92824.0,92823.0,0.0756]
[1764864632369,0.00016153,92827.0,92826.0,0.0756]
[1764864632562,0.00016153,92827.0,92826.0,0.07802002]
[1764864632869,0.07266153,92827.0,92826.0,0.07802002]
[1764864634366,0.07466153,92827.0,92826.0,0.07802002]
[1764864635473,0.00216153,92827.0,92826.0,0.07802002]
[1764864636171,0.00316153,92827.0,92826.0,0.07802002]
[1764864636362,0.00155063,92827.0,92826.0,0.07802002]
[1764864636961,0.00055063,92827.0,92826.0,0.07802002]
[1764864637166,0.00055063,92827.0,92826.0,0.07902002]
[1764864637366,0.0107687,92845.0,92840.0,0.01514]
[1764864637568,0.0107687,92845.0,92844.0,0.07154002]
[1764864637768,0.00016153,92852.0,92851.0,0.06912]
[1764864637969,0.03648153,92852.0,92851.0,0.06912]
[1764864638171,0.07855933,92852.0,92851.0,0.06912]
[1764864639067,0.01092933,92852.0,92851.0,0.06912]
[1764864639270,0.00216153,92852.0,92851.0,0.06912]
[1764864639679,0.00016153,92852.0,92851.0,0.06912]
[1764864639879,0.00216153,92852.0,92851.0,0.06912]
[1764864640174,0.00316153,92852.0,92851.0,0.06912]
[1764864640770,0.03948153,92852.0,92851.0,0.06912]
[1764864641083,0.0107691,92841.0,92840.0,0.08426]
[1764864641278,0.0107691,92841.0,92833.0,0.00016153]
[1764864641279,0.0783999,92834.0,92833.0,0.06928153]
[1764864641582,0.0783999,92834.0,92833.0,0.03633153]
[1764864642082,0.0783999,92834.0,92833.0,0.00016153]
[1764864642279,0.0783999,92834.0,92833.0,0.01058155]
[1764864642581,0.0793999,92834.0,92833.0,0.07531155]
[1764864642967,0.0793999,92834.0,92833.0,0.06731155]
[1764864643981,0.06863,92834.0,92833.0,0.06731155]
[1764864644277,0.06963,92834.0,92833.0,0.06731155]
[1764864644478,0.06863,92834.0,92833.0,0.00016153]
[1764864644678,0.06963,92834.0,92833.0,0.00258155]
[1764864644979,0.06963,92834.0,92833.0,0.00016153]
[1764864645172,0.06963,92834.0,92833.0,0.00258155]
[1764864645373,0.06963,92834.0,92833.0,0.06731155]
[1764864645578,0.06863,92834.0,92833.0,0.06731155]
[1764864645779,0.06963,92834.0,92833.0,0.06731155]
[1764864646177,0.06863,92834.0,92833.0,0.06731155]
[1764864646383,0.06963,92834.0,92833.0,0.06731155]
[1764864646978,0.06963,92834.0,92833.0,0.00016153]
[1764864647486,0.06863,92834.0,92833.0,0.00016153]
[1764864647683,0.06963,92834.0,92833.0,0.00016153]
[1764864649177,0.0736518,92818.0,92817.0,0.0001319]
[1764864649382,0.0736518,92818.0,92817.0,0.06728192]
[1764864649682,0.0736518,92818.0,92817.0,0.0324119]
[1764864649985,0.06288,92818.0,92817.0,0.0648619]
[1764864650184,0.03104,92818.0,92817.0,0.0648619]
[1764864650378,0.0736512,92823.0,92822.0,0.06473]
[1764864650577,0.0736512,92823.0,92822.0,0.06715002]
[1764864651177,0.0736512,92823.0,92822.0,0.06473]
[1764864651389,0.0107717,92819.0,92818.0,0.03228]
[1764864651582,0.08231,92818.0,92817.0,0.0001319]
[1764864651775,0.06288,92818.0,92817.0,0.00255192]
[1764864651981,0.06288,92818.0,92817.0,0.03483192]
[1764864652386,0.001,92823.0,92822.0,0.06473]
[1764864652575,0.03204,92823.0,92822.0,0.06715002]
[1764864652775,0.06388,92823.0,92822.0,0.06715002]
[1764864653581,0.06288,92823.0,92822.0,0.06715002]
[1764864654285,0.06388,92823.0,92822.0,0.07315002]
[1764864654589,0.06388,92823.0,92822.0,0.006]
[1764864654779,0.06388,92823.0,92822.0,0.007]
[1764864656088,0.0107718,92818.0,92817.0,0.0001319]
[1764864656282,0.0736518,92818.0,92817.0,0.0001319]
[1764864656789,0.13165248,92818.0,92817.0,0.06728192]
[1764864657386,0.0746518,92818.0,92817.0,0.0728619]
[1764864657580,0.0746518,92818.0,92817.0,0.0081319]
[1764864657790,0.0746518,92818.0,92817.0,0.0101319]
[1764864657791,0.13265248,92818.0,92817.0,0.0101319]
[1764864658393,0.0746518,92818.0,92817.0,0.0101319]
[1764864658702,0.13265248,92818.0,92817.0,0.0101319]
[1764864658991,0.0736528,92809.0,92808.0,0.00016153]
[1764864659188,0.0736528,92809.0,92806.0,0.00026938]
[1764864659189,0.06288,92807.0,92806.0,0.00026938]
[1764864659389,0.5154928,92809.0,92790.0,0.08399]
[1764864659390,0.0736549,92791.0,92790.0,0.08399]
[1764864659581,0.0736549,92791.0,92790.0,0.06473]
[1764864659781,0.06288,92791.0,92790.0,0.06473]
[1764864659983,0.0629822,92791.0,92790.0,0.03228]
[1764864660478,0.0699822,92791.0,92790.0,0.03328]
[1764864660883,0.0699822,92791.0,92790.0,0.001]
[1764864661185,0.073656,92782.0,92781.0,0.00016162]
[1764864661483,0.0107805,92743.0,92741.0,0.08399]
[1764864661682,0.04182,92747.0,92746.0,0.06473]
[1764864661882,0.07366,92747.0,92746.0,0.06473]
[1764864662090,0.0737632,92747.0,92746.0,0.03228]
[1764864662787,0.0001032,92747.0,92746.0,0.06473]
[1764864664190,0.0011032,92747.0,92746.0,0.06873]
[1764864664693,0.0645132,92747.0,92746.0,0.006]
[1764864664881,0.0645132,92747.0,92746.0,0.03661]
[1764864665081,0.0645132,92747.0,92746.0,0.006]
[1764864665489,0.0645132,92747.0,92746.0,0.00218811]
[1764864666589,0.0752932,92747.0,92746.0,0.00218811]
[1764864666784,0.0011032,92747.0,92746.0,0.06509811]
[1764864666986,0.0648032,92747.0,92746.0,0.03279811]
[1764864667188,0.0648032,92747.0,92746.0,0.00218811]
[1764864667785,0.4648032,92747.0,92737.0,0.00016171]
[1764864668093,0.4648032,92747.0,92737.0,0.06307171]
[1764864668094,0.0637,92738.0,92737.0,0.06307171]
[1764864668289,0.001,92747.0,92737.0,0.06307171]
[1764864668290,0.001,92747.0,92746.0,0.06291]
[1764864668598,0.05791475,92793.0,92755.0,0.06291]
[1764864668911,0.05791475,92805.0,92784.0,0.01905]
[1764864669191,0.28442804,92810.0,92784.0,0.01905]
[1764864669192,0.0107728,92810.0,92784.0,0.01905]
[1764864669489,0.00013416,92804.0,92779.0,0.0107763]
[1764864669689,0.0107744,92796.0,92772.0,0.01905]
[1764864669893,0.00012225,92795.0,92783.0,0.0107758]
[1764864670089,0.00012225,92795.0,92782.0,0.01093761]
[1764864670294,0.00012225,92795.0,92782.0,0.01335763]
[1764864670495,0.00012225,92795.0,92785.0,0.0107756]
[1764864670690,0.00012225,92795.0,92782.0,0.00258173]
[1764864670691,0.06382225,92795.0,92794.0,0.00242002]
[1764864670892,0.06382225,92795.0,92782.0,0.00016171]
[1764864671191,0.07982225,92795.0,92783.0,0.001]
[1764864671386,0.07982225,92795.0,92783.0,0.00342002]
[1764864671587,0.07982225,92795.0,92783.0,0.00242002]
[1764864671588,0.0107749,92791.0,92783.0,0.00242002]
[1764864671788,0.0744749,92791.0,92790.0,0.00242002]
[1764864671991,0.0744749,92791.0,92785.0,0.001]
[1764864672190,0.0107751,92790.0,92789.0,0.06291]
[1764864672595,0.0744751,92790.0,92789.0,0.03061]
[1764864672799,0.0744755,92786.0,92785.0,0.001]
[1764864672994,0.04221596,92786.0,92785.0,0.06391]
[1764864673198,0.37558596,92786.0,92785.0,0.001]
[1764864673889,0.0637,92783.0,92782.0,0.00016171]
[1764864674991,0.0637,92783.0,92782.0,0.06549173]
[1764864675184,0.0647,92783.0,92782.0,0.06549173]
[1764864675389,0.0737,92783.0,92782.0,0.06307171]
[1764864676393,0.01,92783.0,92782.0,0.06307171]
[1764864677295,0.011,92783.0,92782.0,0.06307171]
[1764864677693,0.0747,92783.0,92782.0,0.00016171]
[1764864677893,0.0717,92783.0,92782.0,0.00016171]
[1764864678198,0.03133,92762.0,92761.0,0.07469384]
[1764864678400,0.00011763,92762.0,92761.0,0.07469384]
[1764864678897,0.00011763,92762.0,92761.0,0.06291]
[1764864680292,0.00011763,92762.0,92761.0,0.07471302]
[1764864680692,0.00811763,92762.0,92761.0,0.07471302]
[1764864681192,0.00011763,92762.0,92761.0,0.07471302]
[1764864681393,0.00211763,92762.0,92761.0,0.07471302]
[1764864681792,0.00011763,92762.0,92761.0,0.07471302]
[1764864681994,0.00211763,92762.0,92761.0,0.07471302]
[1764864682298,0.00311763,92762.0,92761.0,0.07471302]
[1764864683205,0.00211763,92762.0,92761.0,0.07571302]
[1764864683893,0.00211763,92762.0,92761.0,0.07471302]
[1764864684097,0.01289593,92762.0,92761.0,0.07571302]
[1764864684391,0.07659593,92762.0,92761.0,0.03161]
[1764864684993,0.00211763,92762.0,92761.0,0.06391]
[1764864686397,0.00211763,92762.0,92761.0,0.06291]
[1764864686595,0.00211763,92762.0,92761.0,0.06391]
[1764864686796,0.00811763,92762.0,92761.0,0.06391]
[1764864687398,0.00211763,92762.0,92761.0,0.06291]
[1764864687599,0.00211763,92762.0,92761.0,0.06391]
[1764864687902,0.03144763,92762.0,92761.0,0.06391]
[1764864688207,0.00211763,92762.0,92761.0,0.06391]
[1764864688693,0.03344763,92762.0,92761.0,0.06391]
[1764864689092,0.06581763,92762.0,92761.0,0.001]
[1764864689308,0.0107821,92730.0,92729.0,0.06291]
[1764864689604,7.667e-05,92730.0,92729.0,0.0748688]
[1764864690601,7.667e-05,92730.0,92729.0,0.0768688]
[1764864691007,0.00207667,92730.0,92729.0,0.0768688]
[1764864692106,1.71e-06,92739.0,92738.0,0.06291]
[1764864692304,0.07721967,92769.0,92759.0,0.06291]
[1764864692607,0.0637,92770.0,92769.0,0.06291]
[1764864692803,0.0107775,92769.0,92763.0,0.0107782]
[1764864693006,0.03133,92767.0,92766.0,0.0413878]
[1764864693309,0.03142201,92767.0,92766.0,0.06291]
[1764864693505,9.201e-05,92767.0,92766.0,0.06291]
[1764864694098,9.201e-05,92767.0,92757.0,0.00016171]
[1764864694299,0.0107781,92764.0,92757.0,0.01336053]
[1764864694499,0.06021,92758.0,92757.0,0.03194171]
[1764864694700,0.03195,92758.0,92757.0,0.06041171]
[1764864695497,0.03195,92758.0,92757.0,0.07119061]
[1764864696104,0.00609201,92767.0,92757.0,0.00016171]
[1764864696306,0.00609201,92767.0,92757.0,0.00258173]
[1764864696606,0.01686981,92767.0,92762.0,0.0107782]
[1764864696811,9.201e-05,92767.0,92762.0,0.0107782]
[1764864697208,9.201e-05,92767.0,92766.0,0.06025]
[1764864697509,0.00309201,92767.0,92766.0,0.06267002]
[1764864697910,9.201e-05,92767.0,92766.0,0.06267002]
[1764864698209,0.00309201,92767.0,92766.0,0.06267002]
[1764864699205,0.00409201,92767.0,92766.0,0.06267002]
[1764864699398,0.00109201,92767.0,92766.0,0.06267002]
[1764864699615,0.00609201,92767.0,92766.0,0.06267002]
[1764864700117,0.00309201,92767.0,92766.0,0.06267002]
[1764864700703,0.00109201,92767.0,92766.0,0.06267002]
[1764864700904,0.00309201,92767.0,92766.0,0.06267002]
[1764864701300,0.00016171,92776.0,92766.0,0.06267002]
[1764864701506,0.00016171,92776.0,92775.0,0.07344682]
[1764864702504,0.0002279,92776.0,92775.0,0.07344682]
[1764864703108,0.0022279,92776.0,92775.0,0.07344682]
[1764864704411,0.0022279,92776.0,92775.0,0.07444682]
[1764864705804,0.0022279,92776.0,92775.0,0.07744682]
[1764864706201,0.0022279,92776.0,92775.0,0.07644682]
[1764864706406,0.0022279,92776.0,92775.0,0.07744682]
[1764864706814,0.2180007,92800.0,92775.0,0.07744682]
[1764864706815,0.09640155,92820.0,92803.0,0.05757]
[1764864707112,0.0690619,92817.0,92816.0,0.05757]
[1764864708106,0.2287723,92820.0,92819.0,0.05757]
[1764864708414,0.0690615,92820.0,92819.0,0.03167002]
[1764864708916,0.0820615,92820.0,92819.0,0.03167002]
[1764864709120,0.04209,92820.0,92819.0,0.05999002]
[1764864709308,0.05929,92820.0,92819.0,0.00242002]
[1764864709507,0.06429,92820.0,92819.0,0.06099002]
[1764864710114,0.06529,92820.0,92819.0,0.06099002]
[1764864710312,0.06529,92820.0,92819.0,0.001]
[1764864710812,0.0760615,92820.0,92819.0,0.001]
[1764864711206,0.05829,92808.0,92807.0,0.00016161]
[1764864712012,0.05829,92808.0,92807.0,0.00258163]